bitfinex-derivatives/quotes_SOLF0:USTF0_20240927
["timestamp","ask_amount","ask_price","bid_price","bid_amount"]
[1727420216284,7.79,157.84,157.8,5.72235589]
[1727420216485,3.1675,157.83,157.8,3.168]
[1727420220586,3.1676,157.82,157.8,3.168]
[1727420220890,3.1676,157.82,157.79,10.9581]
[1727420221092,3.1676,157.83,157.79,7.79]
[1727420221590,3.1676,157.83,157.8,3.168]
[1727420223394,7.79,157.84,157.81,3.1678]
[1727420223894,10.9574,157.84,157.81,3.1678]
[1727420225597,3.1674,157.83,157.81,3.1678]
[1727420228199,10.9573,157.84,157.81,3.1678]
[1727420229397,3.1675,157.83,157.81,3.1678]
[1727420232796,3.1675,157.83,157.8,3.168]
[1727420233101,3.1677,157.82,157.78,9.0451]
[1727420233303,1.3389,157.87,157.78,9.0451]
[1727420233304,7.79,157.83,157.79,4.50772923]
[1727420233494,7.79,157.82,157.74,55.17285099]
[1727420233699,7.79,157.79,157.75,17.93059709]
[1727420233898,7.79,157.8,157.76,4.50812317]
[1727420234200,7.79,157.8,157.76,7.79]
[1727420234600,7.79,157.81,157.76,10.9587]
[1727420234998,7.79,157.82,157.78,7.79]
[1727420235298,7.79,157.82,157.78,10.9583]
[1727420235893,3.168,157.81,157.78,10.9583]
[1727420238396,7.79,157.84,157.79,7.79]
[1727420238601,7.79,157.85,157.79,7.79]
[1727420238802,3.1674,157.84,157.81,3.1678]
[1727420239193,7.79,157.85,157.79,7.79]
[1727420239402,3.1677,157.82,157.8,3.168]
[1727420240707,3.1677,157.82,157.79,10.9582]
[1727420242407,3.1675,157.83,157.8,7.79]
[1727420243910,3.1675,157.83,157.81,3.1678]
[1727420244106,3.1673,157.84,157.81,3.1678]
[1727420245809,1.3185,157.92,157.83,7.79]
[1727420246007,7.79,157.89,157.83,7.79]
[1727420246203,10.97775167,157.89,157.83,7.79]
[1727420246506,7.79,157.86,157.81,7.79]
[1727420246716,3.1673,157.84,157.81,10.9577]
[1727420247210,3.1671,157.85,157.82,7.67403514]
[1727420247410,3.1671,157.85,157.82,3.1676]
[1727420249115,3.1671,157.85,157.82,10.9576]
[1727420252922,7.79,157.85,157.8,7.79]
[1727420253124,7.79,157.85,157.81,4.50638362]
[1727420253322,7.79,157.85,157.8,7.79]
[1727420253624,7.79,157.85,157.81,4.50669945]
[1727420253831,3.1674,157.83,157.81,4.50669945]
[1727420254022,3.1674,157.83,157.8,10.958]
[1727420254217,3.18504268,157.88,157.74,1.245]
[1727420254422,3.1679,157.81,157.78,10.9584]
[1727420254924,3.1679,157.81,157.79,4.5071577]
[1727420255125,3.1679,157.81,157.78,10.9584]
[1727420255528,3.1679,157.81,157.79,4.50727381]
[1727420255821,7.79,157.83,157.8,4.50705521]
[1727420256029,7.79,157.84,157.79,10.9582]
[1727420256324,3.1676,157.83,157.79,10.9582]
[1727420256927,3.1676,157.83,157.8,3.168]
[1727420257427,3.1677,157.82,157.79,10.9581]
[1727420257726,3.1677,157.82,157.79,3.1681]
[1727420258329,3.19863757,157.85,157.76,7.79]
[1727420258527,6.3325,157.9,157.77,12.29823475]
[1727420258528,7.79,157.81,157.77,12.29823475]
[1727420258827,7.79,157.83,157.78,12.29823475]
[1727420259027,10.93350503,157.83,157.78,7.79]
[1727420259823,3.168,157.81,157.78,10.9584]
[1727420261826,7.79,157.82,157.74,1.2782]
[1727420262030,7.79,157.82,157.76,7.79]
[1727420262230,7.79,157.8,157.77,4.50806494]
[1727420262526,7.79,157.8,157.74,9.0682]
[1727420262731,7.79,157.8,157.75,17.93056757]
[1727420262933,7.79,157.8,157.76,4.50807785]
[1727420263227,7.79,157.8,157.77,4.50807785]
[1727420263431,7.79,157.8,157.76,7.79]
[1727420263633,7.79,157.8,157.77,4.50773779]
[1727420263831,7.79,157.8,157.76,7.79]
[1727420264133,7.79,157.8,157.77,4.5076636]
[1727420264430,7.79,157.8,157.76,7.79]
[1727420264644,7.79,157.8,157.77,4.5076115]
[1727420264832,10.9582,157.8,157.77,3.1685]
[1727420265628,3.1682,157.8,157.77,3.1685]
[1727420267633,3.1683,157.79,157.76,10.9588]
[1727420267828,3.1683,157.79,157.77,4.50730229]
[1727420268033,3.1683,157.79,157.76,10.9588]
[1727420269234,10.9581,157.8,157.77,3.1686]
[1727420275333,68.44,157.91,157.74,1.2782]
[1727420275334,6.3321,157.91,157.79,7.79]
[1727420275535,2.656,157.9,157.82,7.79]
[1727420275830,7.79,157.88,157.82,7.79]
[1727420276031,7.79,157.87,157.82,7.79]
[1727420277036,3.1671,157.85,157.82,10.9576]
[1727420277630,3.1669,157.86,157.82,10.9576]
[1727420278039,7.79,157.87,157.83,3.1673]
[1727420278235,10.9568,157.87,157.83,3.1673]
[1727420278741,7.79,157.87,157.83,3.1673]
[1727420279238,7.79,157.88,157.83,3.1673]
[1727420279536,3.1669,157.86,157.82,10.9576]
[1727420281947,7.79,157.86,157.8,14.99567609]
[1727420282143,7.79,157.86,157.8,7.79]
[1727420282442,7.79,157.86,157.81,12.29335571]
[1727420282643,7.79,157.86,157.81,7.79]
[1727420283043,3.1676,157.83,157.81,7.79]
[1727420285937,3.1676,157.83,157.8,10.958]
[1727420286546,3.1678,157.82,157.79,7.79]
[1727420287243,3.1678,157.82,157.79,10.9581]
[1727420287947,7.79,157.85,157.81,7.79]
[1727420288950,3.1469883,157.86,157.78,21.19803138]
[1727420288951,7.79,157.83,157.78,21.19803138]
[1727420289153,7.79,157.83,157.78,7.79]
[1727420289850,3.1679,157.81,157.78,10.9583]
[1727420290447,7.79,157.8,157.74,1.2782]
[1727420290746,7.79,157.8,157.75,12.2938773]
[1727420290945,7.79,157.8,157.76,4.5038773]
[1727420291148,3.1684,157.79,157.75,7.79]
[1727420291350,3.1684,157.79,157.76,4.50400798]
[1727420291553,3.1684,157.79,157.76,3.1687]
[1727420301363,3.1685,157.78,157.75,3.169]
[1727420301559,7.79,157.77,157.74,1.2782]
[1727420302062,10.9588,157.77,157.74,4.4473]
[1727420304663,3.1689,157.76,157.74,1.2782]
[1727420305169,7.79,157.77,157.74,1.2782]
[1727420305669,10.9588,157.77,157.74,3.1692]
[1727420306061,7.79,157.77,157.73,1.2846]
[1727420306371,1.3522,157.84,157.76,7.79]
[1727420306568,7.79,157.83,157.78,7.79]
[1727420306767,3.1678,157.82,157.78,10.9583]
[1727420306969,3.1678,157.82,157.78,7.79]
[1727420307270,3.22638813,157.85,157.78,7.79]
[1727420307470,7.79,157.83,157.78,7.79]
[1727420307863,3.1678,157.82,157.79,3.1681]
[1727420309665,7.79,157.83,157.79,3.1681]
[1727420309869,10.9575,157.83,157.79,3.1681]
[1727420310766,10.9575,157.83,157.8,3.168]
[1727420313074,3.1677,157.82,157.8,3.168]
[1727420318380,7.79,157.82,157.78,3.1684]
[1727420318580,7.79,157.81,157.78,3.1684]
[1727420318983,3.1683,157.79,157.77,3.1686]
[1727420319185,7.79,157.81,157.77,3.1686]
[1727420319584,3.1681,157.8,157.77,3.1686]
[1727420321377,10.9586,157.78,157.74,3.1691]
[1727420321577,7.79,157.77,157.75,17.91382769]
[1727420321783,7.79,157.77,157.73,1.2846]
[1727420321982,10.9588,157.77,157.74,4.50432963]
[1727420322179,10.9588,157.77,157.73,4.4539]
[1727420322379,7.79,157.77,157.73,4.4539]
[1727420323087,3.169,157.76,157.73,4.4539]
[1727420323386,7.79,157.77,157.73,4.4539]
[1727420323787,10.9587,157.77,157.74,3.1692]
[1727420325487,10.9587,157.77,157.73,4.454]
[1727420325786,7.79,157.76,157.73,4.454]
[1727420327287,10.9588,157.76,157.73,4.454]
[1727420330988,3.1688,157.76,157.73,4.454]
[1727420331183,10.9588,157.76,157.73,4.454]
[1727420332886,3.1691,157.75,157.73,1.2846]
[1727420333082,3.1691,157.75,157.72,5.8587]
[1727420333884,10.9591,157.75,157.72,4.5371]
[1727420334594,3.1689,157.76,157.73,3.1694]
[1727420334794,10.9589,157.76,157.73,3.1694]
[1727420334993,7.79,157.74,157.69,1.2443]
[1727420335193,1.3405,157.8,157.67,4.5371]
[1727420335495,7.79,157.71,157.67,9.1566]
[1727420335999,7.79,157.71,157.68,3.1703]
[1727420336590,10.9599,157.71,157.68,3.1703]
[1727420336790,10.9599,157.71,157.67,4.5372]
[1727420336998,7.79,157.71,157.67,3.1706]
[1727420337592,7.79,157.7,157.67,3.1706]
[1727420338092,7.79,157.68,157.64,6.19749912]
[1727420338289,93.26898885,157.78,157.63,11.6998]
[1727420338290,7.79,157.69,157.63,10.10729912]
[1727420338488,7.79,157.69,157.65,7.79]
[1727420338693,7.79,157.69,157.66,3.1707]
[1727420339290,93.26898885,157.78,157.66,3.1707]
[1727420339489,7.79,157.7,157.67,3.1706]
[1727420340098,7.79,157.68,157.65,3.171]
[1727420340296,7.79,157.68,157.63,11.6998]
[1727420340699,7.79,157.68,157.65,3.171]
[1727420340700,10.9605,157.68,157.65,3.171]
[1727420340997,7.79,157.68,157.65,3.171]
[1727420342395,10.9606,157.68,157.64,3.1712]
[1727420342597,7.79,157.68,157.64,3.1712]
[1727420343396,3.10688877,157.73,157.64,3.1712]
[1727420343597,7.79,157.68,157.64,3.1712]
[1727420343797,7.79,157.68,157.66,3.1708]
[1727420343996,3.17651069,157.73,157.65,7.79]
[1727420344197,7.79,157.72,157.67,7.79]
[1727420344405,10.9597,157.72,157.68,3.1703]
[1727420344701,93.26898885,157.78,157.68,7.79]
[1727420344901,7.79,157.74,157.68,7.79]
[1727420345107,10.9593,157.74,157.68,7.79]
[1727420345601,10.9593,157.74,157.7,3.1699]
[1727420345800,3.1697,157.72,157.64,4.48751325]
[1727420346001,7.79,157.73,157.67,7.79]
[1727420346202,7.79,157.71,157.68,3.1703]
[1727420346404,7.79,157.71,157.67,7.79]
[1727420346698,7.79,157.71,157.67,10.9606]
[1727420346899,10.9604,157.69,157.64,4.48751325]
[1727420347100,7.79,157.69,157.63,11.6998]
[1727420347701,1.3451,157.73,157.63,7.0811]
[1727420347702,7.79,157.67,157.63,7.0811]
[1727420347898,7.79,157.67,157.63,3.9098]
[1727420348301,7.79,157.67,157.64,3.1712]
[1727420348502,10.9606,157.68,157.63,11.6998]
[1727420348701,3.1706,157.68,157.64,7.79]
[1727420348997,10.9603,157.69,157.64,7.79]
[1727420349807,10.9603,157.69,157.65,3.171]
[1727420350008,7.79,157.7,157.64,7.79]
[1727420350506,10.9606,157.68,157.63,11.6998]
[1727420350701,7.79,157.67,157.63,11.6998]
[1727420350902,7.79,157.67,157.63,14.8711]
[1727420351306,10.9608,157.67,157.63,14.8711]
[1727420351503,7.79,157.66,157.62,4.48751277]
[1727420351707,4.50915652,157.73,157.62,4.48751277]
[1727420351708,7.79,157.65,157.62,4.48751277]
[1727420352607,10.9611,157.65,157.62,7.65901277]
[1727420353001,7.79,157.65,157.62,7.65901277]
[1727420353203,7.79,157.66,157.62,7.65901277]
[1727420353605,10.961,157.66,157.62,7.65901277]
[1727420353802,10.961,157.66,157.62,3.1715]
[1727420354110,10.961,157.66,157.63,3.1715]
[1727420354307,3.1707,157.67,157.63,10.9615]
[1727420355713,3.1707,157.67,157.64,3.1713]
[1727420357909,2.6369,157.72,157.63,7.79]
[1727420358218,7.79,157.73,157.67,7.79]
[1727420358411,7.79,157.73,157.68,7.79]
[1727420358708,10.9596,157.73,157.69,3.1701]
[1727420358913,7.79,157.73,157.69,3.1701]
[1727420359314,3.10229166,157.74,157.66,7.79]
[1727420359513,7.79,157.71,157.65,11.7858]
[1727420360812,3.1701,157.7,157.67,3.1706]
[1727420363712,7.79,157.72,157.68,3.1704]
[1727420364309,10.9598,157.72,157.68,3.1704]
[1727420364713,7.79,157.72,157.68,3.1704]
[1727420365815,3.1699,157.71,157.68,3.1704]
[1727420366012,3.1699,157.71,157.67,7.79]
[1727420366420,3.1701,157.7,157.67,7.79]
[1727420366817,3.1701,157.7,157.65,11.7858]
[1727420367424,3.1701,157.7,157.67,3.1705]
[1727420369518,10.9599,157.71,157.67,3.1705]
[1727420370123,10.9599,157.71,157.67,10.9605]
[1727420370919,10.9599,157.71,157.68,3.1704]
[1727420371721,3.1701,157.7,157.67,3.1706]
[1727420373022,10.9599,157.71,157.66,7.79]
[1727420373220,93.26898885,157.78,157.69,7.79]
[1727420373422,93.26898885,157.78,157.71,7.79]
[1727420373623,7.79,157.77,157.71,10.9598]
[1727420374017,7.79,157.77,157.65,3.9958]
[1727420374018,7.79,157.74,157.69,7.79]
[1727420374329,7.79,157.72,157.65,3.9958]
[1727420374528,7.79,157.72,157.67,7.79]
[1727420374923,7.79,157.72,157.67,10.9605]
[1727420374924,3.1699,157.71,157.67,10.9605]
[1727420376929,3.1701,157.7,157.67,10.9605]
[1727420378328,3.1699,157.71,157.68,3.1704]
[1727420378526,7.79,157.73,157.68,7.79]
[1727420379225,3.1698,157.72,157.68,10.9603]
[1727420380731,3.1698,157.72,157.69,3.1702]
[1727420383833,3.1698,157.72,157.68,10.9604]
[1727420384732,10.9598,157.72,157.68,3.1704]
[1727420385838,3.1699,157.71,157.67,10.9606]
[1727420388337,3.1699,157.71,157.65,3.9958]
[1727420388338,7.79,157.69,157.65,1.3448]
[1727420388835,10.9604,157.69,157.65,4.5157]
[1727420389241,7.79,157.69,157.65,4.5157]
[1727420390346,10.9603,157.69,157.65,4.5157]
[1727420390637,3.15085409,157.72,157.62,7.79]
[1727420390838,10.9606,157.68,157.63,7.79]
[1727420391037,10.9606,157.68,157.63,10.9614]
[1727420391038,7.79,157.68,157.63,10.9614]
[1727420391235,3.1708,157.67,157.63,10.9614]
[1727420391541,7.79,157.68,157.62,7.79]
[1727420392041,3.171,157.66,157.62,10.9616]
[1727420394538,3.171,157.66,157.63,3.1715]
[1727420395344,3.171,157.66,157.62,10.9616]
[1727420395736,3.1711,157.65,157.6,2.5151]
[1727420395940,3.1711,157.65,157.62,7.79]
[1727420396741,3.1711,157.65,157.62,10.9617]
[1727420396945,3.171,157.66,157.62,10.9617]
[1727420397142,3.171,157.66,157.62,7.79]
[1727420398645,7.79,157.67,157.63,3.1715]
[1727420399746,10.9607,157.67,157.63,3.1715]
[1727420399948,3.9932,157.75,157.64,7.79]
[1727420400142,3.9932,157.75,157.63,7.79]
[1727420400143,7.79,157.69,157.63,7.79]
[1727420400445,10.9608,157.67,157.63,3.1713]
[1727420401344,3.1709,157.66,157.63,3.1713]
[1727420401738,7.79,157.67,157.63,3.1713]
[1727420401942,7.79,157.67,157.63,10.9613]
[1727420402344,3.9932,157.75,157.64,7.79]
[1727420402845,10.9606,157.68,157.64,7.79]
[1727420403244,10.9606,157.68,157.64,10.9612]
[1727420403447,3.1707,157.67,157.6,2.5151]
[1727420403645,3.1707,157.67,157.63,10.9613]
[1727420405660,3.1706,157.68,157.64,10.9612]
[1727420406150,3.1706,157.68,157.65,3.171]
[1727420406849,3.1707,157.67,157.64,3.1712]
[1727420407051,7.79,157.68,157.63,7.79]
[1727420407652,3.171,157.66,157.63,7.79]
[1727420408046,7.79,157.68,157.63,7.79]
[1727420408450,3.1708,157.67,157.63,10.9613]
[1727420408743,3.1708,157.67,157.63,7.79]
[1727420409151,3.1708,157.67,157.64,3.1711]
[1727420409349,3.14617941,157.72,157.66,7.79]
[1727420409652,7.79,157.71,157.66,7.79]
[1727420409853,3.17,157.71,157.68,7.79]
[1727420410755,10.96,157.71,157.67,3.1706]
[1727420410954,3.1701,157.7,157.67,3.1706]
[1727420411554,3.1703,157.69,157.66,3.1708]
[1727420411757,3.1703,157.69,157.66,10.9608]
[1727420412751,3.1703,157.69,157.66,7.79]
[1727420413155,3.1703,157.69,157.65,3.171]
[1727420413355,3.1703,157.69,157.66,7.79]
[1727420413956,7.79,157.68,157.63,7.79]
[1727420414252,7.79,157.65,157.6,5.687]
[1727420414450,10.9611,157.65,157.64,4.50230405]
[1727420414654,10.9611,157.65,157.6,13.477]
[1727420414855,7.79,157.65,157.61,3.1719]
[1727420415052,10.9611,157.65,157.61,3.1719]
[1727420415252,7.79,157.67,157.62,7.79]
[1727420415556,7.79,157.71,157.66,7.79]
[1727420415751,7.79,157.69,157.64,7.79]
[1727420416256,7.79,157.71,157.65,7.79]
[1727420416456,7.79,157.72,157.67,7.79]
[1727420416849,3.1701,157.7,157.67,10.9606]
[1727420417158,3.1701,157.7,157.67,3.1706]
[1727420417652,3.1703,157.69,157.66,3.1708]
[1727420417856,3.1703,157.69,157.66,10.9608]
[1727420418454,3.1703,157.69,157.66,7.79]
[1727420418655,3.1703,157.69,157.65,10.961]
[1727420420863,3.1702,157.7,157.66,10.9608]
[1727420421352,3.1701,157.7,157.66,10.9607]
[1727420424156,3.1701,157.7,157.67,3.1706]
[1727420424356,7.79,157.73,157.67,7.79]
[1727420425157,3.17,157.71,157.68,3.1703]
[1727420426455,93.27329506,157.78,157.7,7.79]
[1727420426665,93.27329506,157.78,157.72,7.79]
[1727420426852,3.169,157.76,157.72,10.9596]
[1727420427360,7.79,157.75,157.69,7.79]
[1727420427562,7.79,157.73,157.7,7.67142332]
[1727420427762,7.79,157.73,157.7,3.1699]
[1727420428163,7.79,157.73,157.69,10.9602]
[1727420428462,7.79,157.73,157.67,9.0402]
[1727420428659,3.1698,157.72,157.69,3.1702]
[1727420429454,93.27329506,157.78,157.71,7.79]
[1727420429661,6.3327,157.89,157.74,7.79]
[1727420429855,6.3327,157.89,157.76,7.79]
[1727420430061,6.3327,157.89,157.71,17.90286158]
[1727420430062,7.79,157.8,157.71,17.90286158]
[1727420430263,7.79,157.8,157.7,3.09710273]
[1727420430264,12.18,157.81,157.72,4.50024486]
[1727420430457,12.18,157.81,157.71,13.39651394]
[1727420430663,12.18,157.81,157.72,4.49870086]
[1727420430858,3.1686,157.78,157.73,4.49870086]
[1727420431059,3.1686,157.78,157.7,13.5473]
[1727420431259,3.1686,157.78,157.71,17.89047103]
[1727420431461,3.1687,157.77,157.73,3.1693]
[1727420431862,12.18,157.78,157.7,1.3673]
[1727420432270,12.18,157.78,157.71,4.49715299]
[1727420432462,3.1689,157.76,157.72,3.1696]
[1727420432767,12.18,157.78,157.69,1.3704]
[1727420433166,3.1691,157.75,157.7,3.1699]
[1727420433561,3.1691,157.75,157.69,13.5504]
[1727420434069,3.1689,157.76,157.71,3.1697]
[1727420434270,3.1689,157.76,157.69,13.5504]
[1727420434471,3.1689,157.76,157.7,4.4963033]
[1727420434667,3.1689,157.76,157.69,13.5504]
[1727420434862,3.1689,157.76,157.7,4.49624306]
[1727420435171,3.1689,157.76,157.69,13.5504]
[1727420435365,3.1689,157.76,157.7,4.49559565]
[1727420435568,3.1689,157.76,157.71,3.1698]
[1727420435868,3.1689,157.76,157.69,20.74335304]
[1727420436066,3.1689,157.76,157.7,4.49559565]
[1727420436272,3.1689,157.76,157.69,13.5504]
[1727420436567,3.1689,157.76,157.72,3.1695]
[1727420436773,3.9464,157.8,157.69,13.5504]
[1727420436774,3.1687,157.77,157.71,12.18]
[1727420436966,13.475,157.8,157.71,12.18]
[1727420437167,3.1689,157.76,157.72,4.5265]
[1727420438073,3.1687,157.77,157.73,3.1694]
[1727420442279,3.1687,157.77,157.74,3.1692]
[1727420442477,1.295,157.8,157.72,1.357]
[1727420442682,12.18,157.82,157.73,12.18]
[1727420443081,15.34720591,157.82,157.73,12.18]
[1727420443674,3.1683,157.79,157.75,3.1689]
[1727420444072,3.1683,157.79,157.73,12.18]
[1727420444478,15.34720591,157.82,157.73,12.18]
[1727420444678,15.34720591,157.82,157.72,1.357]
[1727420445079,3.1688,157.77,157.72,1.357]
[1727420445280,12.18,157.81,157.72,1.357]
[1727420445577,3.16720591,157.82,157.72,1.357]
[1727420445787,93.24946798,157.83,157.72,1.357]
[1727420445982,12.18,157.81,157.72,1.357]
[1727420446284,15.32882163,157.81,157.74,3.1692]
[1727420446483,12.18,157.81,157.74,3.1692]
[1727420446782,3.1686,157.78,157.74,3.1692]
[1727420446994,3.1686,157.78,157.75,3.169]
[1727420447787,3.1683,157.79,157.76,3.1688]
[1727420447990,93.24946798,157.83,157.76,12.18]
[1727420448177,96.47458837,157.83,157.76,12.18]
[1727420448381,3.1682,157.8,157.77,3.1686]
[1727420449183,96.47458837,157.83,157.76,12.18]
[1727420449381,93.24946798,157.83,157.76,12.18]
[1727420449585,96.35827359,157.83,157.76,12.18]
[1727420450686,3.1681,157.8,157.77,3.1685]
[1727420451584,96.35827359,157.83,157.74,1.3791]
[1727420451882,96.35827359,157.83,157.72,1.357]
[1727420451883,12.18,157.81,157.72,1.357]
[1727420452287,7.8,157.76,157.71,7.8]
[1727420452582,7.8,157.76,157.69,1.3036]
[1727420452784,3.1696,157.73,157.7,7.8]
[1727420452984,7.8,157.76,157.7,7.8]
[1727420453388,3.1695,157.73,157.7,7.8]
[1727420453886,3.1697,157.72,157.7,7.8]
[1727420454389,3.1697,157.72,157.69,1.3036]
[1727420455087,3.1695,157.73,157.69,1.3036]
[1727420458981,3.1697,157.72,157.69,1.3036]
[1727420459488,12.18,157.76,157.67,1.3157]
[1727420459687,3.21611104,157.73,157.64,12.18]
[1727420460186,3.1702,157.7,157.66,15.3508]
[1727420460387,3.18830294,157.74,157.66,12.18]
[1727420460786,3.17,157.71,157.67,3.1705]
[1727420462392,3.1697,157.72,157.68,3.1704]
[1727420463698,3.1697,157.72,157.69,3.1702]
[1727420464097,102.69317359,157.83,157.7,12.18]
[1727420464299,12.18,157.81,157.72,12.18]
[1727420464696,12.18,157.79,157.69,12.18]
[1727420465397,3.1695,157.73,157.7,3.17]
[1727420465795,3.1695,157.73,157.67,12.18]
[1727420465997,3.1697,157.72,157.67,12.18]
[1727420466396,3.1697,157.72,157.68,3.1704]
[1727420466803,3.1699,157.71,157.68,3.1704]
[1727420467098,12.18,157.77,157.67,15.3506]
[1727420467298,12.18,157.75,157.67,3.1706]
[1727420467501,15.29022823,157.75,157.67,3.1706]
[1727420467700,15.29022823,157.75,157.66,15.3508]
[1727420468203,3.1699,157.71,157.67,3.1706]
[1727420469003,3.1697,157.72,157.68,3.1704]
[1727420469198,3.1697,157.72,157.68,15.3504]
[1727420469793,3.1695,157.73,157.68,12.18]
[1727420470199,13.507,157.79,157.68,12.18]
[1727420470402,3.1694,157.74,157.69,14.7842]
[1727420470799,13.507,157.79,157.69,14.7842]
[1727420471001,3.1692,157.75,157.71,3.1698]
[1727420471196,12.18,157.81,157.72,12.18]
[1727420471404,3.169,157.76,157.72,15.3495]
[1727420471904,12.18,157.79,157.69,14.7842]
[1727420472099,3.1694,157.74,157.7,3.1699]
[1727420472504,3.1696,157.73,157.69,17.9543]
[1727420473210,2.5245,157.82,157.69,14.7842]
[1727420473501,12.18,157.78,157.69,14.7842]
[1727420473702,3.1694,157.74,157.7,3.1699]
[1727420474505,3.1694,157.74,157.71,3.1698]
[1727420476110,3.1692,157.75,157.71,3.1698]
[1727420476410,3.1692,157.75,157.72,3.1696]
[1727420476604,3.1692,157.75,157.69,14.7842]
[1727420477500,3.1692,157.75,157.71,3.1697]
[1727420478904,14.7045,157.82,157.74,12.18]
[1727420479103,3.10880561,157.83,157.74,12.18]
[1727420479309,3.1685,157.78,157.74,12.18]
[1727420480812,3.1685,157.78,157.74,15.3492]
[1727420481205,3.1687,157.77,157.74,12.18]
[1727420483327,3.1687,157.77,157.73,3.1693]
[1727420483506,3.1689,157.76,157.72,15.3496]
[1727420483706,3.1689,157.76,157.6,6.343]
[1727420483707,12.18,157.78,157.68,6.19089322]
[1727420483915,12.18,157.78,157.71,7.1895793]
[1727420484117,12.18,157.78,157.68,6.19089322]
[1727420484118,3.1696,157.73,157.67,20.68913288]
[1727420484312,3.1696,157.73,157.69,10.4042]
[1727420484512,3.1696,157.73,157.71,7.8]
[1727420484914,3.1696,157.73,157.7,7.8]
[1727420485113,3.1697,157.72,157.7,7.8]
[1727420485418,7.8,157.74,157.7,7.8]
[1727420485719,3.1696,157.73,157.7,7.8]
[1727420486316,3.1696,157.73,157.69,5.7744]
[1727420486618,12.18,157.78,157.68,12.18]
[1727420487516,3.1695,157.73,157.69,3.1701]
[1727420489318,3.1693,157.74,157.7,3.1699]
[1727420490923,3.1693,157.74,157.71,3.1698]
[1727420491221,3.1692,157.75,157.71,3.1698]
[1727420491717,3.1692,157.74,157.71,3.1698]
[1727420492114,12.18,157.78,157.68,12.18]
[1727420492323,12.18,157.78,157.69,4.50234179]
[1727420492623,12.18,157.78,157.69,3.1703]
[1727420492922,12.18,157.75,157.66,12.18]
[1727420493118,3.13970755,157.74,157.68,3.1703]
[1727420493321,3.1698,157.72,157.66,12.18]
[1727420493517,3.1698,157.72,157.69,3.1702]
[1727420493719,12.18,157.77,157.65,2.7141]
[1727420494022,3.1698,157.72,157.69,3.1702]
[1727420494222,3.09151655,157.74,157.67,12.18]
[1727420494419,3.1698,157.72,157.68,4.50355946]
[1727420494622,3.1698,157.72,157.68,3.1703]
[1727420495218,3.21104293,157.74,157.67,15.3506]
[1727420496720,12.18,157.75,157.65,2.7141]
[1727420496721,3.1704,157.69,157.66,3.1708]
[1727420497220,3.1702,157.7,157.66,3.1708]
[1727420497822,3.1702,157.7,157.67,3.1706]
[1727420498419,2.6355,157.75,157.67,12.18]
[1727420498622,1.3078,157.76,157.68,4.50209864]
[1727420498823,1.3078,157.76,157.67,12.18]
[1727420499128,3.1698,157.72,157.68,7.67239177]
[1727420499323,13.4878,157.76,157.67,12.18]
[1727420499520,3.17,157.71,157.67,15.3505]